bitfinex-derivatives/quotes_ETHF0:USTF0_20250702
["timestamp","ask_amount","ask_price","bid_price","bid_amount"]
[1751474531123,49.494,2542.7,2542.5,1.3258]
[1751474531421,49.494,2542.7,2542.6,0.78617]
[1751474532222,2.14705,2543.1,2542.5,3.2913]
[1751474532418,11.72,2543.1,2543.0,0.78605]
[1751474532618,49.488,2543.1,2543.0,0.78605]
[1751474533419,12.50603,2543.1,2542.8,2.11188]
[1751474533615,37.767,2543.0,2542.9,0.78608]
[1751474533820,37.767,2543.0,2542.8,2.11189]
[1751474534020,38.55307,2543.0,2542.8,2.11189]
[1751474534323,37.767,2543.0,2542.9,0.78608]
[1751474534525,37.767,2543.0,2542.9,1.3985]
[1751474534818,0.78617,2542.6,2542.5,1.3818]
[1751474535022,0.7862,2542.5,2542.4,1.3819]
[1751474536823,1.96559,2542.4,2541.4,0.78652]
[1751474537119,1.96579,2542.2,2541.4,3.46422]
[1751474537325,11.708,2542.1,2541.7,8.02029783]
[1751474537620,49.466,2542.1,2542.0,0.78636]
[1751474540026,0.78625,2542.4,2542.3,0.78626]
[1751474540229,56.629,2542.5,2542.4,0.78623]
[1751474540423,2.36774324,2543.5,2542.2,8.02029783]
[1751474540625,37.754,2543.2,2542.5,8.02029783]
[1751474540925,37.754,2543.2,2542.9,0.78606]
[1751474541121,37.754,2543.2,2542.6,3.8107]
[1751474541425,1.96517,2543.0,2542.6,1.2774]
[1751474541624,0.78614,2542.7,2542.6,1.2774]
[1751474541821,0.78612,2542.8,2542.5,0.7862]
[1751474542017,2.08242,2542.8,2542.5,0.7862]
[1751474542725,0.78616,2542.7,2542.4,0.78623]
[1751474542925,38.54018,2542.6,2542.3,0.78625]
[1751474543128,0.78621,2542.5,2542.3,2.20136]
[1751474543327,37.754,2542.6,2542.3,1.4151]
[1751474543625,37.754,2542.6,2542.4,0.78623]
[1751474543626,38.54018,2542.6,2542.4,0.78623]
[1751474543929,37.754,2542.6,2542.5,0.7862]
[1751474544327,11.708,2542.9,2542.7,0.78613]
[1751474544625,37.75,2542.8,2542.7,0.78614]
[1751474544827,37.75,2542.8,2542.6,0.78616]
[1751474545024,37.75,2542.8,2542.7,1.4151]
[1751474545231,37.75,2542.8,2542.7,2.6364]
[1751474545530,38.53511,2542.8,2542.7,2.6364]
[1751474545724,38.53511,2542.8,2542.7,1.2213]
[1751474546128,38.53511,2542.8,2542.3,1.4005]
[1751474546129,44.95401509,2542.8,2542.3,1.4005]
[1751474546424,0.78623,2542.4,2542.3,1.4005]
[1751474546629,37.748,2542.4,2542.2,1.171]
[1751474546830,37.748,2542.4,2542.2,1.95728]
[1751474547024,37.748,2542.4,2542.2,1.171]
[1751474547323,37.748,2542.4,2542.3,2.18676]
[1751474547530,12.49313,2542.8,2542.4,0.78623]
[1751474547730,37.745,2542.7,2542.5,2.18669]
[1751474548033,11.707,2542.8,2542.7,0.78613]
[1751474548327,49.451,2542.8,2542.6,0.78615]
[1751474548534,11.707,2542.8,2542.7,2.20814]
[1751474548832,49.45,2542.8,2542.7,2.20814]
[1751474549035,1.2411,2543.1,2542.7,1.422]
[1751474549334,37.743,2543.0,2542.8,1.1922]
[1751474549534,13.73414,2543.1,2542.9,0.78607]
[1751474549833,0.78608,2542.9,2542.8,1.1922]
[1751474550428,0.78611,2542.9,2542.7,0.78613]
[1751474550624,0.78614,2542.8,2542.6,1.97837]
[1751474550829,0.78614,2542.7,2542.6,1.1922]
[1751474552236,0.78623,2542.5,2542.2,2.73013233]
[1751474552430,37.74,2542.5,2542.4,0.78623]
[1751474552833,37.74,2542.5,2542.3,2.18004]
[1751474553032,38.5262,2542.5,2542.3,2.18005]
[1751474553332,37.74,2542.5,2542.3,1.3938]
[1751474553533,0.78623,2542.4,2542.3,1.3938]
[1751474553933,37.74,2542.5,2542.3,2.18006]
[1751474554135,38.5262,2542.5,2542.3,2.18006]
[1751474554335,38.5262,2542.5,2542.3,2.18004]
[1751474554534,37.74,2542.5,2542.4,0.78623]
[1751474555432,0.78623,2542.4,2542.3,1.3938]
[1751474555734,0.78609,2542.9,2542.7,0.78613]
[1751474555935,11.707,2543.0,2542.7,0.78613]
[1751474556137,2.02713,2543.1,2542.5,3.3535]
[1751474556335,50.22606,2543.0,2542.8,0.7861]
[1751474556633,50.22606,2543.0,2542.8,0.78609]
[1751474556833,0.78609,2542.9,2542.7,0.78612]
[1751474557034,37.732,2542.9,2542.8,2.17411]
[1751474557627,38.51808,2542.9,2542.3,1.96561]
[1751474557827,0.78618,2542.6,2542.4,2.21521]
[1751474558030,0.78618,2542.6,2542.2,4.75791769]
[1751474558031,37.731,2542.5,2542.2,2.4904]
[1751474558231,0.78623,2542.4,2542.2,2.4904]
[1751474558430,0.78623,2542.4,2542.2,3.27669]
[1751474558631,38.51722,2542.5,2542.3,0.78626]
[1751474558829,37.731,2542.5,2542.4,0.78623]
[1751474559027,3.2062,2543.1,2542.4,0.78623]
[1751474559233,52.33491132,2543.0,2542.5,1.429]
[1751474559533,1.2411,2543.1,2542.5,1.429]
[1751474559738,37.728,2543.0,2542.8,0.78611]
[1751474560034,37.728,2542.9,2542.8,0.78611]
[1751474560635,0.78613,2542.8,2542.5,1.429]
[1751474560828,37.728,2542.9,2542.8,0.78611]
[1751474561032,37.728,2542.9,2542.5,1.429]
[1751474561334,38.51409,2542.9,2542.7,0.78612]
[1751474561535,37.728,2542.9,2542.5,1.429]
[1751474561934,39.69322,2542.9,2542.5,1.429]
[1751474562135,39.69322,2542.9,2542.2,1.2187]
[1751474562136,0.78612,2542.8,2542.2,1.2187]
[1751474562336,0.78614,2542.7,2542.5,0.78618]
[1751474562531,37.728,2542.9,2542.4,0.78622]
[1751474562732,0.78617,2542.6,2542.1,1.96582]
[1751474562932,37.723,2542.5,2542.4,0.78621]
[1751474563133,0.7861,2542.9,2542.3,1.96562]
[1751474563431,37.722,2542.8,2542.7,0.78614]
[1751474563832,2.198,2543.4,2542.6,4.46317]
[1751474564039,13.41447471,2543.3,2543.1,0.78601]
[1751474564329,12.48097,2543.3,2542.9,1.9652]
[1751474564537,37.72,2543.2,2543.0,1.2952]
[1751474564737,37.72,2543.2,2543.1,0.78599]
[1751474564928,1.1941,2543.4,2543.0,3.26029]
[1751474565129,11.695,2543.5,2543.4,0.78592]
[1751474565434,50.19992,2543.5,2543.3,0.78595]
[1751474565737,50.19989,2543.5,2543.4,1.2952]
[1751474566137,0.78593,2543.4,2543.2,2.03487]
[1751474566540,0.78596,2543.3,2543.2,1.2489]
[1751474566740,0.78603,2543.1,2542.8,0.7861]
[1751474566940,37.717,2543.0,2542.9,0.78608]
[1751474567337,0.39958487,2543.5,2542.8,1.96527]
[1751474567539,50.19594,2543.4,2543.2,0.78598]
[1751474567840,50.19595,2543.4,2543.1,0.786]
[1751474568043,50.19594,2543.4,2543.2,0.78598]
[1751474568240,49.41,2543.4,2543.1,0.786]
[1751474568540,49.41,2543.4,2542.9,1.399]
[1751474568836,0.78598,2543.3,2542.9,1.399]
[1751474569139,37.711,2543.2,2543.1,0.78602]
[1751474569339,11.694,2543.4,2543.3,0.78596]
[1751474569540,2.00788,2543.6,2543.4,0.78592]
[1751474569736,38.49589,2543.5,2543.3,0.78593]
[1751474569941,37.71,2543.5,2543.4,0.78592]
[1751474571342,11.694,2543.6,2543.5,0.78589]
[1751474571642,49.401,2543.6,2543.5,0.78589]
[1751474571938,49.401,2543.6,2543.4,0.7859]
[1751474572242,50.18688,2543.6,2543.5,0.78589]
[1751474572439,49.401,2543.6,2543.2,1.3239]
[1751474572643,1.96491,2543.3,2542.1,3.93161]
[1751474572942,37.704,2543.2,2542.7,1.96534]
[1751474573137,0.78603,2543.1,2542.9,0.78606]
[1751474573336,0.78605,2543.0,2542.9,0.78606]
[1751474573539,0.78603,2543.1,2543.0,0.78605]
[1751474573740,38.49,2543.2,2543.1,0.78602]
[1751474573940,37.704,2543.2,2543.0,0.78602]
[1751474574138,37.704,2543.2,2542.8,1.3758]
[1751474574340,37.704,2543.2,2543.1,0.78602]
[1751474575038,11.693,2543.4,2543.0,1.96513]
[1751474575231,1.1861,2543.5,2543.1,2.16182]
[1751474575438,56.629,2543.7,2543.6,0.78586]
[1751474575737,94.327,2543.7,2543.6,0.78586]
[1751474575942,94.326,2543.7,2543.6,0.78586]
[1751474576138,94.326,2543.7,2543.6,2.03696]
[1751474576440,11.693,2543.8,2543.7,0.78583]
[1751474576635,11.693,2543.8,2543.7,2.14823]
[1751474576841,0.78564,2544.4,2544.3,0.78562]
[1751474577041,12.47862,2544.4,2544.3,0.78562]
[1751474577240,0.78562,2544.4,2544.3,0.78562]
[1751474577435,12.9345,2544.5,2544.4,0.78562]
[1751474577637,49.387,2544.5,2544.4,0.78562]
[1751474578033,49.387,2544.5,2544.1,1.209]
[1751474578232,0.78567,2544.3,2544.2,0.78567]
[1751474578436,5.34569688,2544.7,2544.4,0.78562]
[1751474578636,12.47857,2544.6,2544.3,0.78563]
[1751474578834,38.47859,2544.5,2544.3,0.78563]
[1751474579039,3.91819688,2544.7,2544.6,0.78555]
[1751474579238,53.30319688,2544.7,2544.2,1.3624]
[1751474579444,54.08872688,2544.7,2544.4,0.7856]
[1751474579633,53.30319688,2544.7,2544.1,1.209]
[1751474579838,49.377,2544.6,2544.1,1.209]
[1751474580037,49.377,2544.6,2544.2,1.3658]
[1751474580038,0.7856,2544.5,2544.2,1.3658]
[1751474580244,0.78566,2544.3,2544.1,1.209]
[1751474580439,3.91819688,2544.7,2544.2,1.9642]
[1751474580636,4.70372688,2544.7,2544.4,0.7856]
[1751474580842,49.376,2544.6,2544.5,0.78558]
[1751474581042,50.16157,2544.6,2544.3,0.78562]
[1751474581346,0.7856,2544.5,2544.2,0.78567]
[1751474581545,0.78564,2544.4,2544.1,1.9947]
[1751474581741,37.684,2544.3,2544.1,1.9947]
[1751474582037,37.684,2544.3,2544.2,0.78568]
[1751474584041,42.684,2544.3,2543.2,1.96496]
[1751474584343,51.922,2544.2,2543.5,1.96474]
[1751474584543,1.2631,2544.2,2543.7,1.96459]
[1751474584850,0.78582,2543.8,2543.4,1.2872]
[1751474585042,51.33133,2544.1,2543.4,2.0731]
[1751474585043,37.677,2543.7,2543.4,2.0731]
[1751474585244,37.676,2543.6,2543.4,2.07311]
[1751474585444,37.676,2543.6,2543.4,1.2872]
[1751474585646,37.676,2543.6,2543.5,0.78589]
[1751474585947,0.78576,2544.0,2543.6,0.78585]
[1751474586147,49.365,2543.9,2543.6,0.78585]
[1751474586446,49.365,2543.9,2543.7,1.3926]
[1751474587739,49.365,2543.9,2543.7,2.17841]
[1751474587946,11.69,2544.4,2544.1,0.7857]
[1751474588147,37.673,2544.3,2544.2,2.03807]
[1751474588541,38.45865,2544.3,2544.2,1.2524]
[1751474588747,11.69,2544.4,2544.3,0.78565]
[1751474589048,37.671,2544.4,2544.3,2.07745]
[1751474589253,11.69,2544.6,2544.5,0.78558]
[1751474589548,2.34338652,2545.6,2544.4,8.41940343]
[1751474589743,0.7855,2544.8,2544.6,0.78554]
[1751474589944,0.7855,2544.8,2544.7,1.2667]
[1751474590140,37.67,2545.0,2544.7,1.2667]
[1751474590346,0.78548,2544.9,2544.7,1.2667]
[1751474590549,0.78549,2544.8,2544.7,2.5585]
[1751474590741,0.78548,2544.9,2544.7,1.2667]
[1751474590942,0.78561,2544.5,2544.3,1.2918]
[1751474591248,38.4556,2544.5,2544.2,0.78567]
[1751474591545,0.78577,2543.9,2543.8,2.26105759]
[1751474591849,0.78583,2543.7,2543.6,2.26105759]
[1751474592247,50.13783,2543.7,2543.6,2.26105759]
[1751474592544,37.663,2543.7,2543.4,7.98340343]
[1751474592744,0.78584,2543.7,2543.4,1.3198]
[1751474592942,37.663,2543.7,2543.4,2.10572]
[1751474593546,37.663,2543.7,2543.5,1.99458]
[1751474593746,1.2499,2544.1,2543.8,0.78579]
[1751474593951,49.338,2544.0,2543.8,0.78579]
[1751474594151,49.338,2544.0,2543.7,0.78582]
[1751474594352,49.338,2544.0,2543.5,1.2087]
[1751474594547,0.78582,2543.8,2543.5,1.99459]
[1751474594844,0.78577,2543.9,2543.5,1.99457]
[1751474595048,0.78577,2543.9,2543.6,0.12280461]
[1751474595252,0.7858,2543.8,2543.7,0.12280461]
[1751474595450,0.78579,2543.9,2543.7,0.12280461]
[1751474595652,0.78579,2543.9,2543.8,0.12280461]
[1751474595848,0.78585,2543.7,2543.5,1.2087]
[1751474596049,37.662,2543.6,2543.5,1.2087]
[1751474596548,37.662,2543.6,2543.2,1.3102]
[1751474596753,0.78589,2543.5,2543.2,3.29538]
[1751474596952,37.662,2543.6,2543.2,1.1992]
[1751474597151,1.1935,2543.4,2543.2,1.1992]
[1751474597350,1.1935,2543.4,2543.2,1.98518]
[1751474597550,38.44788,2543.6,2543.3,0.78595]
[1751474597751,1.97931,2543.8,2543.5,0.78588]
[1751474598052,38.44783,2543.7,2543.3,1.3598]
[1751474598248,0.78586,2543.6,2543.4,2.0253]
[1751474598450,1.97931,2543.8,2543.5,2.14568]
[1751474598753,0.78586,2543.6,2543.5,1.3598]
[1751474598958,38.44785,2543.7,2543.5,1.3598]
[1751474599156,37.662,2543.7,2543.5,1.3598]
[1751474599351,0.78586,2543.6,2543.5,1.3598]
[1751474600158,38.44783,2543.7,2543.5,2.14569]
[1751474600357,37.662,2543.7,2543.6,0.78586]
[1751474600558,38.44786,2543.7,2543.5,1.3598]
[1751474600955,0.78586,2543.6,2543.5,1.3598]
[1751474601259,37.662,2543.7,2543.2,1.1992]
[1751474601758,37.662,2543.7,2543.3,1.3847]
[1751474602063,37.66,2543.6,2543.5,0.78588]
[1751474602459,0.78584,2543.7,2543.5,0.78588]
[1751474602659,12.46384,2543.7,2543.6,1.3847]
[1751474602859,50.12284,2543.7,2543.6,1.3847]
[1751474603061,49.337,2543.7,2543.4,0.78592]
[1751474603360,38.44488,2543.6,2543.4,0.78592]
[1751474603563,37.659,2543.6,2543.2,1.1992]
[1751474603762,0.78595,2543.3,2543.2,1.1992]
[1751474604757,0.78605,2543.0,2542.6,2.26105759]
[1751474604956,37.658,2543.2,2542.7,2.5716]
[1751474605253,0.78604,2543.1,2542.8,1.2936]
[1751474605457,37.658,2543.2,2543.0,0.78602]
[1751474605657,37.658,2543.2,2542.8,3.25887]
[1751474605859,0.78595,2543.4,2543.2,0.78597]
[1751474606064,11.678,2543.4,2543.3,2.06393]
[1751474606261,37.656,2543.9,2543.6,0.78585]
[1751474606467,0.78583,2543.8,2543.4,2.7103]
[1751474606767,0.78585,2543.7,2543.5,0.78588]
[1751474606960,0.78585,2543.7,2543.5,2.20408]
[1751474607264,0.78586,2543.6,2543.5,1.4182]
[1751474607461,37.658,2543.6,2543.5,1.4182]
[1751474607868,37.658,2543.6,2543.5,2.20409]
[1751474608564,38.44386,2543.6,2543.5,1.4182]
[1751474609163,37.658,2543.6,2543.5,2.20409]
[1751474609362,38.44386,2543.6,2543.5,1.4182]
[1751474609563,37.658,2543.6,2543.5,2.20409]
[1751474610366,4.65957,2544.3,2543.5,3.38293]
[1751474610671,50.26470371,2544.2,2543.5,1.4182]
[1751474610872,1.71741371,2544.1,2543.5,3.38291]
[1751474611065,0.78575,2544.0,2543.5,1.4182]
[1751474611269,0.78577,2543.9,2543.7,0.78581]
[1751474611567,0.78577,2543.9,2543.8,1.2146]
[1751474611763,37.653,2543.9,2543.8,2.0004]
[1751474611958,37.653,2543.9,2543.5,1.4182]
[1751474612165,0.78586,2543.6,2543.5,2.6328]
[1751474612364,11.679,2543.6,2542.9,1.96519]
[1751474612567,0.7861,2542.9,2542.5,2.26105759]
[1751474612759,0.78606,2543.0,2542.8,0.7861]
[1751474613066,0.78606,2543.0,2542.8,0.78609]
[1751474613261,37.651,2543.1,2542.6,2.6429]
[1751474613462,38.43703,2543.1,2542.9,0.78608]
[1751474613659,1.2337,2543.5,2543.0,8.00635495]
[1751474613871,0.78584,2543.7,2543.5,0.78588]
[1751474614068,11.679,2543.8,2543.6,2.00754]
[1751474614369,37.648,2543.7,2543.6,2.00754]
[1751474614563,37.648,2543.7,2543.6,2.00756]
[1751474614958,37.648,2543.7,2543.6,1.2217]
[1751474615165,37.648,2543.7,2543.6,2.00756]
[1751474615565,38.43383,2543.7,2543.6,1.2217]
[1751474615965,37.648,2543.7,2543.6,2.00756]
[1751474616165,38.43383,2543.7,2543.6,1.2217]
[1751474617471,37.648,2543.7,2543.6,2.00756]
[1751474617866,37.648,2543.7,2543.6,1.2217]
[1751474618365,38.43383,2543.7,2543.6,1.2217]
[1751474618565,37.648,2543.7,2543.6,2.00756]
[1751474619272,38.43383,2543.7,2543.6,1.2217]
[1751474619579,0.78598,2543.3,2543.0,2.26105759]
[1751474619869,38.42698,2543.3,2543.2,1.2059]
[1751474620076,37.641,2543.3,2543.2,1.99189]
[1751474620273,1.96452,2543.8,2543.3,0.78594]
[1751474620570,49.318,2543.7,2543.3,1.4173]
[1751474620773,0.78589,2543.6,2543.4,0.78591]
[1751474620977,0.78595,2543.3,2543.2,1.2059]
[1751474621274,38.42495,2543.3,2543.2,1.2059]
[1751474621470,37.639,2543.3,2543.2,1.99189]
[1751474621669,3.15745,2543.9,2543.4,0.78591]
[1751474621872,0.7859,2543.5,2543.3,0.78593]
[1751474622071,0.7859,2543.5,2543.4,1.3342]
[1751474622473,37.638,2543.5,2543.4,1.3342]
[1751474622673,38.42389,2543.5,2543.4,1.3342]
[1751474622977,37.638,2543.5,2543.4,2.12012]
[1751474623168,37.636,2543.5,2543.4,2.12012]
[1751474623370,0.78593,2543.4,2543.2,1.2059]
[1751474623566,37.636,2543.5,2543.4,0.78592]
[1751474624172,37.636,2543.5,2543.2,2.5401]
[1751474624368,38.42192,2543.5,2543.3,1.3342]
[1751474624873,38.42192,2543.5,2543.3,2.12013]
[1751474625381,0.78592,2543.4,2543.3,2.12013]
[1751474625575,0.78595,2543.3,2543.2,1.2059]
[1751474625975,1.96458,2543.7,2543.3,0.78595]
[1751474626174,49.301,2543.6,2543.3,2.15064]
[1751474626369,0.78591,2543.5,2543.3,1.3647]
[1751474626570,50.08688,2543.6,2543.4,0.78592]
[1751474626778,50.08688,2543.6,2543.5,1.3647]
[1751474627678,0.78588,2543.6,2543.5,1.3647]
[1751474627874,38.41686,2543.6,2543.5,1.3647]
[1751474628076,0.78595,2543.3,2543.2,1.2059]
[1751474628277,37.631,2543.3,2543.2,2.5428]
[1751474628475,37.631,2543.3,2543.2,3.32878]
[1751474628676,37.631,2543.3,2543.2,2.5428]
[1751474628979,37.631,2543.3,2543.2,3.32878]
[1751474629882,0.78591,2543.5,2543.3,0.78594]
[1751474630082,12.45387,2543.6,2543.4,2.1228]
[1751474630282,38.41289,2543.5,2543.4,2.1228]
[1751474630690,38.41289,2543.5,2543.4,1.3369]
[1751474630880,38.41189,2543.5,2543.4,1.3369]
[1751474631583,38.41189,2543.5,2543.4,2.12282]
[1751474631785,38.41189,2543.5,2543.4,1.3369]
[1751474631985,0.78595,2543.3,2543.2,1.2059]
[1751474632176,0.78604,2543.0,2542.9,3.50315759]
[1751474632483,38.41003,2543.1,2542.9,2.02816]
[1751474632682,37.624,2543.1,2543.0,1.3361]
[1751474632984,0.00589368,2543.7,2543.0,3.3012]
[1751474633184,0.78592,2543.5,2543.3,0.78594]
[1751474633389,38.40792,2543.5,2543.4,3.33682]
[1751474633783,0.78592,2543.5,2543.4,2.5509]
[1751474633985,38.40892,2543.5,2543.4,2.5509]
[1751474634284,0.00589368,2543.7,2543.4,2.5509]
[1751474634484,37.622,2543.6,2543.4,2.5509]
[1751474634680,38.40788,2543.6,2543.4,3.33679]
[1751474634985,0.78589,2543.5,2543.4,2.5509]
[1751474635285,0.78589,2543.5,2543.4,1.2148]
[1751474635983,38.40788,2543.6,2543.4,1.2148]
[1751474636189,37.622,2543.6,2543.4,1.2148]
[1751474636484,38.40788,2543.6,2543.4,1.2148]
[1751474636687,38.40788,2543.6,2543.4,2.00071]
[1751474636980,0.00589368,2543.7,2543.6,0.78586]
[1751474637181,37.62289368,2543.7,2543.6,0.78586]
[1751474638476,0.00589368,2543.7,2543.6,0.78586]
[1751474638779,37.61989368,2543.7,2543.6,0.78586]
[1751474638979,0.00589368,2543.7,2543.6,0.78586]
[1751474641385,0.00589368,2543.7,2543.5,3.42186]
[1751474641585,0.78586,2543.6,2543.5,1.4054]
[1751474641789,0.78595,2543.3,2543.2,2.26105759]
[1751474642179,0.78593,2543.4,2543.2,0.78597]
[1751474642686,40.2291,2543.6,2543.0,1.2029]
[1751474642687,0.78598,2543.2,2543.1,0.78599]
[1751474642882,0.78597,2543.3,2543.1,0.78599]
[1751474643083,0.78594,2543.4,2543.1,0.78599]
[1751474643387,40.2291,2543.6,2543.0,2.515]
[1751474643589,39.63006,2543.6,2543.4,0.7859]
[1751474643887,38.8442,2543.6,2543.0,2.515]
[1751474644084,40.80887,2543.6,2543.0,2.515]
[1751474644390,0.78592,2543.4,2543.1,0.78598]
[1751474644589,12.45392,2543.4,2543.1,0.78601]
[1751474644888,11.668,2543.4,2543.2,0.78597]
[1751474645088,11.668,2543.4,2543.0,2.515]
[1751474645290,11.668,2543.4,2543.2,0.78598]
[1751474645484,12.45392,2543.4,2543.2,0.78598]
[1751474645680,11.668,2543.4,2543.3,0.78595]
[1751474645888,37.601,2543.4,2543.0,2.515]
[1751474646187,38.38693,2543.4,2543.2,0.78598]
[1751474646383,0.78596,2543.3,2543.1,0.786]
[1751474646580,37.601,2543.4,2543.0,2.515]
[1751474646885,37.601,2543.4,2543.3,0.78595]
[1751474647187,37.597,2543.6,2543.3,9.16268076]
[1751474647489,38.38286,2543.6,2543.4,2.6168]
[1751474647679,37.597,2543.6,2543.5,0.78589]
[1751474647885,38.38286,2543.6,2543.5,1.286]
[1751474648391,0.78596,2543.3,2543.1,0.786]
[1751474648590,0.78596,2543.3,2543.2,1.286]
[1751474648888,0.78594,2543.4,2543.2,2.07198]
[1751474649085,0.78594,2543.4,2543.2,1.286]
[1751474649284,0.78595,2543.3,2543.2,1.286]
[1751474649889,0.78604,2543.0,2542.8,3.48105759]
[1751474650186,0.78607,2542.9,2542.8,3.48105759]
[1751474650387,2.07567,2542.9,2542.8,1.22]
[1751474650787,1.2896,2542.9,2542.8,4.26715759]
[1751474650994,2.07567,2542.9,2542.8,3.48105759]
[1751474651191,0.7861,2542.8,2542.7,2.26105759]
[1751474651591,1.18085235,2542.8,2542.7,2.26105759]
[1751474651788,0.39475235,2542.8,2542.7,2.26105759]
[1751474652095,0.78608,2542.9,2542.7,0.78613]
[1751474652292,37.591,2543.1,2542.8,2.27371863]
[1751474652488,0.78607,2542.9,2542.8,2.27371863]
[1751474652790,39.55604,2543.1,2542.7,1.3749]
[1751474652992,0.78613,2542.7,2542.6,1.22]
[1751474653194,37.588,2542.7,2542.3,1.3749]
[1751474653389,7.19780076,2542.5,2542.2,1.2931]
[1751474653697,0.78626,2542.3,2542.2,1.2931]
[1751474654194,38.37326,2542.3,2542.2,1.2931]
[1751474655189,37.59,2542.4,2542.2,2.07937]
[1751474655394,37.59,2542.4,2542.3,1.3981]
[1751474655593,1.2502,2542.6,2542.3,1.3981]
[1751474655786,0.78607,2543.0,2542.6,0.78614]
[1751474655992,37.587,2542.9,2542.8,0.7861]
[1751474656192,49.63221956,2543.0,2542.9,0.78607]
[1751474656392,12.04621956,2543.0,2542.9,0.78607]
[1751474656596,11.653,2543.0,2542.9,1.97287]
[1751474657489,11.653,2543.0,2542.9,1.1868]
[1751474657694,11.653,2543.0,2542.9,1.97287]
[1751474658192,12.43904,2543.0,2542.9,1.1868]
[1751474658596,11.653,2543.0,2542.9,1.1868]
[1751474658894,12.43904,2543.0,2542.9,1.1868]
[1751474659098,0.7861,2542.8,2542.7,1.295]
[1751474659292,38.3701,2542.8,2542.7,1.295]
[1751474659493,44.78180076,2542.8,2542.4,1.3086]
[1751474659693,0.78619,2542.6,2542.4,1.3086]
[1751474659996,0.78619,2542.6,2542.4,2.09482]
[1751474660499,37.579,2542.5,2542.4,2.09482]
[1751474660689,37.579,2542.5,2542.4,2.09483]
[1751474661198,0.78623,2542.4,2542.3,1.2171]
[1751474662697,0.78632,2542.1,2542.0,2.27371863]
[1751474663200,0.78635,2542.0,2541.9,3.65121863]
[1751474663395,37.576,2542.1,2542.0,0.78635]
[1751474663596,38.36233,2542.1,2541.9,4.43757863]
[1751474663795,37.576,2542.1,2541.8,1.1983]
[1751474663995,0.78638,2541.9,2541.8,1.1983]
[1751474664395,37.576,2542.1,2541.8,1.1983]
[1751474664596,2.5998,2542.3,2541.8,4.52932]
[1751474664597,1.1882,2542.3,2541.8,4.52932]
[1751474664801,1.1882,2542.3,2542.2,0.78629]
[1751474665100,49.228,2542.3,2542.2,0.78629]
[1751474665695,1.97439,2542.6,2542.3,0.78624]
[1751474665899,1.1882,2542.6,2542.5,0.7862]
[1751474666097,0.78614,2542.7,2542.5,0.7862]
[1751474666402,49.227,2542.6,2542.5,0.7862]
[1751474667303,49.229,2542.6,2542.5,0.7862]
[1751474667697,1.1808,2542.9,2542.8,0.7861]
[1751474667998,11.655,2542.9,2542.8,0.7861]
[1751474668203,49.226,2542.9,2542.8,0.7861]
[1751474668798,11.655,2542.9,2542.8,0.7861]
[1751474669202,49.224,2542.9,2542.8,0.7861]
[1751474669903,11.655,2543.3,2543.2,0.78597]
[1751474670098,49.22,2543.3,2543.2,0.78597]
[1751474670701,50.00595,2543.3,2543.2,0.78597]
[1751474670901,49.22,2543.3,2543.2,0.78597]
[1751474671303,49.22,2543.3,2542.9,5.90599]
[1751474671699,49.22,2543.3,2543.2,0.78598]
[1751474672008,49.217,2543.3,2543.2,0.78598]
[1751474672596,11.655,2543.3,2543.2,0.78598]
[1751474672805,49.213,2543.3,2543.2,0.78598]
[1751474673598,11.654,2543.6,2542.9,5.90594]
[1751474673797,38.34192,2543.5,2543.4,0.78592]
[1751474674104,37.556,2543.5,2543.4,0.78592]
[1751474674299,68.275,2543.7,2543.3,1.96487]
[1751474674600,11.654,2543.7,2543.4,1.2851]
[1751474674807,49.208,2543.7,2543.6,0.78586]
[1751474677402,0.78575,2544.0,2543.9,0.78576]
[1751474677603,0.78577,2543.9,2543.8,0.78577]
[1751474677907,0.78571,2544.1,2544.0,0.78573]
[1751474678302,37.544,2544.1,2544.0,0.78573]
[1751474678501,11.652,2544.2,2543.9,1.3009]
[1751474678803,11.652,2544.2,2544.1,0.7857]
[1751474679209,49.191,2544.2,2544.1,0.7857]
[1751474679403,49.19,2544.2,2544.1,0.7857]
[1751474680208,49.97567,2544.2,2544.1,0.7857]
[1751474680405,49.19,2544.2,2544.1,0.7857]
[1751474680908,49.97567,2544.2,2544.1,0.7857]
[1751474681309,49.19,2544.2,2544.1,0.7857]
[1751474683210,49.97568,2544.2,2544.0,2.18271]
[1751474683912,56.38780076,2544.2,2543.9,1.3009]
[1751474684102,0.78573,2544.0,2543.9,1.3009]
[1751474684309,38.31073,2544.0,2543.9,1.3009]
[1751474684612,37.525,2544.0,2543.9,2.08666]
[1751474684805,37.525,2544.0,2543.9,3.39766]
[1751474685016,0.38628058,2544.4,2543.9,3.39766]
[1751474685211,0.78573,2544.0,2543.9,2.6119]
[1751474685418,37.52,2544.0,2543.9,2.6119]
[1751474685613,38.30573,2544.0,2543.9,2.6119]
[1751474686118,37.52,2544.0,2543.9,3.39766]
[1751474686420,38.30573,2544.0,2543.9,2.6119]
[1751474686817,37.52,2544.0,2543.9,3.39766]
[1751474687311,18.82880076,2544.3,2544.0,0.78572]